fUST/lending_fUST_20241203
["ID","MTS","AMOUNT","RATE_DAILY","PERIOD"]
[344021945,1733209853580,-500.0,0.00029863,7]
[344021946,1733209853590,-500.0,0.00029863,7]
[344021947,1733209853599,-500.0,0.00029863,7]
[344021948,1733209853610,-500.0,0.00029863,7]
[344021949,1733209853620,-500.0,0.00029863,7]
[344021950,1733209853629,-500.0,0.00029863,7]
[344021951,1733209853640,-640.61,0.00029863,7]
[344021952,1733209853650,-500.0,0.00029863,7]
[344021953,1733209853660,-500.0,0.00029863,7]
[344021954,1733209853670,-500.0,0.00029863,7]
[344021955,1733209853680,-500.0,0.00029863,7]
[344021956,1733209853690,-598.14,0.00029863,7]
[344021957,1733209853700,-731.11,0.00029863,7]
[344021958,1733209853710,-175.41,0.00029863,7]
[344021959,1733209853721,-500.0,0.00029863,7]
[344021960,1733209853731,-500.0,0.00029863,7]
[344021961,1733209853750,-154.0,0.00029863,7]
[344021962,1733209853767,-500.0,0.00029863,7]
[344021963,1733209853787,-640.52,0.00029863,7]
[344021964,1733209853806,-500.0,0.00029863,7]
[344021965,1733209853825,-656.67,0.00029863,7]
[344021966,1733209853844,-515.8,0.00029863,7]
[344021967,1733209853860,-500.0,0.00029863,7]
[344021968,1733209853875,-500.0,0.00029863,7]
[344021969,1733209853893,-648.41,0.00029863,7]
[344021970,1733209853913,-7919.88,0.00029863,7]
[344021971,1733209853930,-500.0,0.00029863,7]
[344021972,1733209853945,-500.0,0.00029863,7]
[344021973,1733209853964,-3362.04,0.00029863,7]
[344021974,1733209853980,-827.86,0.00029863,7]
[344021975,1733209853996,-500.0,0.00029863,7]
[344021976,1733209854011,-500.0,0.00029863,7]
[344021977,1733209854026,-500.0,0.00029863,7]
[344021978,1733209854041,-500.0,0.00029863,7]
[344021979,1733209854057,-559.53,0.00029863,7]
[344021980,1733209854073,-500.0,0.00029863,7]
[344021981,1733209854087,-4578.14877152,0.000299,2]
[344021982,1733209854101,-4578.1487715,0.000299,2]
[344021983,1733209854116,-4578.1487715,0.000299,2]
[344021984,1733209854132,-4578.1487715,0.000299,2]
[344021985,1733209854147,-3014.85516827,0.000299,2]
[344021986,1733209854162,-3014.85516827,0.000299,2]
[344021987,1733209854177,-3014.85516827,0.000299,2]
[344021988,1733209854192,-3014.85516827,0.000299,2]
[344021989,1733209854207,-170.8755,0.0003,2]
[344021990,1733209854223,-151.0,0.0003,120]
[344021991,1733209854241,-151.0,0.0003,120]
[344021992,1733209854260,-229.0,0.0003,2]
[344021993,1733209854275,-151.0,0.00030099,7]
[344021994,1733209854291,-500.0,0.00030136,7]
[344021995,1733209854305,-500.0,0.00030136,7]
[344021996,1733209854321,-500.0,0.00030136,7]
[344021997,1733209854336,-500.0,0.00030136,7]
[344021998,1733209854349,-500.0,0.00030136,7]
[344021999,1733209854364,-500.0,0.00030136,7]
[344022000,1733209854449,-500.0,0.00030136,7]
[344022001,1733209854459,-248.73869339,0.00030136,7]
[344022002,1733209854469,-640.61,0.00030136,7]
[344022003,1733209854478,-500.0,0.00030136,7]
[344022004,1733209854490,-500.0,0.00030136,7]
[344022005,1733209854500,-500.0,0.00030136,7]
[344022006,1733209854509,-500.0,0.00030136,7]
[344022007,1733209854519,-598.14,0.00030136,7]
[344022008,1733209854528,-731.11,0.00030136,7]
[344022009,1733209854538,-175.41,0.00030136,7]
[344022010,1733209854549,-500.0,0.00030136,7]
[344022011,1733209854559,-500.0,0.00030136,7]
[344022012,1733209854568,-500.0,0.00030136,7]
[344022013,1733209854579,-640.52,0.00030136,7]
[344022014,1733209854589,-500.0,0.00030136,7]
[344022015,1733209854599,-656.67,0.00030136,7]
[344022016,1733209854608,-500.0,0.00030136,7]
[344022017,1733209854618,-500.0,0.00030136,7]
[344022018,1733209854628,-648.41,0.00030136,7]
[344022019,1733209854637,-500.0,0.00030136,6]
[344022020,1733209854647,-7919.88,0.00030136,7]
[344022021,1733209854657,-500.0,0.00030136,7]
[344022022,1733209854667,-500.0,0.00030136,7]
[344022023,1733209854677,-3362.04,0.00030136,7]
[344022024,1733209854687,-827.86,0.00030136,7]
[344022025,1733209854698,-500.0,0.00030136,7]
[344022026,1733209854708,-500.0,0.00030136,7]
[344022027,1733209854718,-281.03056287,0.00030136,7]
[344022028,1733209854728,-500.0,0.00030136,7]
[344022029,1733209854738,-559.53,0.00030136,7]
[344022030,1733209854755,-500.0,0.00030136,7]
[344022031,1733209854766,-192.53062,0.00030137,120]
[344022032,1733209854776,-155.00003904,0.00030169,2]
[344022033,1733209854785,-3343.12560286,0.000302,7]
[344022034,1733209854796,-316.0,0.00030205,2]
[344022035,1733209854805,-166.0,0.00030205,2]
[344022036,1733209854815,-502.06337365,0.00030323,11]
[344022037,1733209854825,-500.0,0.0003041,7]
[344022038,1733209854834,-500.0,0.0003041,7]
[344022039,1733209854844,-500.0,0.0003041,7]
[344022040,1733209854853,-500.0,0.0003041,7]
[344022041,1733209854863,-381.97894113,0.0003041,7]
[344022042,1733209854874,-500.0,0.0003041,7]
[344022043,1733209854884,-500.0,0.0003041,7]
[344022044,1733209854893,-640.61,0.0003041,7]
[344022045,1733209854903,-500.0,0.0003041,7]
[344022046,1733209854912,-500.0,0.0003041,7]
[344022047,1733209854922,-500.0,0.0003041,7]
[344022048,1733209854931,-398.19997638,0.0003041,7]
[344022049,1733209854941,-598.14,0.0003041,7]
[344022050,1733209854951,-731.11,0.0003041,7]
[344022051,1733209854960,-175.41,0.0003041,7]
[344022052,1733209854969,-500.0,0.0003041,7]
[344022053,1733209854979,-500.0,0.0003041,7]
[344022054,1733209854991,-500.0,0.0003041,7]
[344022055,1733209855000,-640.52,0.0003041,7]
[344022056,1733209855010,-500.0,0.0003041,7]
[344022057,1733209855020,-656.67,0.0003041,7]
[344022058,1733209855030,-500.0,0.0003041,7]
[344022059,1733209855039,-538.40957286,0.0003041,7]
[344022060,1733209855049,-648.41,0.0003041,7]
[344022061,1733209855058,-7919.88,0.0003041,7]
[344022062,1733209855068,-500.0,0.0003041,7]
[344022063,1733209855078,-500.0,0.0003041,7]
[344022064,1733209855087,-3362.04,0.0003041,7]
[344022065,1733209855097,-827.86,0.0003041,7]
[344022066,1733209855106,-500.0,0.0003041,7]
[344022067,1733209855117,-500.0,0.0003041,7]
[344022068,1733209855126,-500.0,0.0003041,7]
[344022069,1733209855136,-559.53,0.0003041,7]
[344022070,1733209855145,-501.85,0.0003041,7]
[344022071,1733209855155,-985.5181924,0.00030456,3]
[344022072,1733209855165,-2897.35120429,0.00030472,2]
[344022073,1733209855174,-2475.02210901,0.00030473,2]
[344022074,1733209855184,-2000.0,0.000305,3]
[344022075,1733209855193,-187.0,0.000305,3]
[344022076,1733209855203,-160.0,0.00030555,5]
[344022077,1733209855213,-4633196.70617466,0.00030572,10]
[344022078,1733209855646,5000.0,0.00016001,2]
[344022079,1733209855686,-632.75402473,0.00020173,2]
[344022080,1733209855696,-217.52500248,0.00020173,2]
[344022081,1733209855706,-971.092,0.00023822,2]
[344022082,1733209855716,-500.0,0.00029589,7]
[344022083,1733209855726,-500.0,0.00029863,7]
[344022084,1733209855736,-500.0,0.00030136,7]
[344022085,1733209855751,-500.0,0.0003041,7]
[344022086,1733209855760,-11822.0104739,0.00030572,10]
[344022087,1733209855772,-3420.83734236,0.00030572,10]
[344022088,1733209855785,-39840.607936,0.00030572,10]
[344022089,1733209855796,-11563.25,0.00030572,10]
[344022090,1733209855809,-10227.4,0.00030572,10]
[344022091,1733209856247,-501.15188269,0.0002018,2]
[344022092,1733209856258,-312.61291247,0.0002018,2]
[344022093,1733209856268,-500.0,0.0002018,2]
[344022094,1733209856279,-500.0,0.0002018,2]
[344022095,1733209856339,-500.0,0.0002018,2]
[344022096,1733209856358,-500.0,0.0002018,2]
[344022097,1733209856368,-500.0,0.0002018,2]
[344022098,1733209856377,-500.0,0.0002018,2]
[344022099,1733209856387,-500.0,0.0002018,2]
[344022100,1733209856396,-500.0,0.0002018,2]
[344022101,1733209856406,-500.0,0.0002018,2]
[344022102,1733209856416,-500.0,0.0002018,2]
[344022103,1733209856426,-500.0,0.0002018,2]
[344022104,1733209856436,-500.0,0.0002018,2]
[344022105,1733209856445,-500.0,0.0002018,2]
[344022106,1733209856455,-500.0,0.0002018,2]
[344022107,1733209856464,-500.0,0.0002018,2]
[344022108,1733209856474,-500.0,0.0002018,2]
[344022109,1733209856484,-500.0,0.0002018,2]
[344022110,1733209856496,-358.87925589,0.0002018,2]
[344022111,1733209856522,-141.12074411,0.0002018,2]
[344022112,1733209856532,-500.0,0.0002018,2]
[344022113,1733209856542,-500.0,0.0002018,2]
[344022114,1733209856552,-500.0,0.0002018,2]
[344022115,1733209856561,-500.0,0.0002018,2]
[344022116,1733209856572,-500.0,0.0002018,2]
[344022117,1733209856582,-500.0,0.0002018,2]
[344022118,1733209856591,-500.0,0.0002018,2]
[344022119,1733209856601,-500.0,0.0002018,2]
[344022120,1733209856611,-500.0,0.0002018,2]
[344022121,1733209856621,-500.0,0.0002018,2]
[344022122,1733209856631,-500.0,0.0002018,2]
[344022123,1733209856641,-500.0,0.0002018,2]
[344022124,1733209856652,-500.0,0.0002018,2]
[344022125,1733209856662,-614.0583119,0.0002018,2]
[344022126,1733209856672,-500.0,0.0002018,2]
[344022127,1733209856682,-500.0,0.0002018,2]
[344022128,1733209856692,-500.0,0.0002018,2]
[344022129,1733209856702,-300.0,0.0002018,2]
[344022130,1733209856712,-500.0,0.0002018,2]
[344022131,1733209856722,-500.0,0.0002018,2]
[344022132,1733209856732,-500.0,0.0002018,2]
[344022133,1733209856745,-500.0,0.0002018,2]
[344022134,1733209856755,-500.0,0.0002018,2]
[344022135,1733209856766,-500.0,0.0002018,2]
[344022136,1733209856775,-500.0,0.0002018,2]
[344022137,1733209856785,-500.0,0.0002018,2]
[344022138,1733209856795,-500.0,0.0002018,2]
[344022139,1733209856805,-500.0,0.0002018,2]
[344022140,1733209856815,-500.0,0.0002018,2]
[344022141,1733209856826,-500.0,0.0002018,2]
[344022142,1733209856836,-500.0,0.0002018,2]
[344022143,1733209856846,-500.0,0.0002018,2]
[344022144,1733209856855,-239.81981673,0.0002018,2]
[344022145,1733209857060,-260.18018327,0.0002018,2]
[344022146,1733209857069,-281.51702605,0.0002018,2]
[344022147,1733209857081,-218.48297395,0.0002018,2]
[344022148,1733209857091,-500.0,0.0002018,2]
[344022149,1733209857101,-500.0,0.0002018,2]
[344022150,1733209857111,-500.0,0.0002018,2]
[344022151,1733209857122,-401.98257583,0.00020357,2]
[344022152,1733209857132,-1584.96,0.00027387,10]
[344022153,1733209857143,-3524.37797597,0.00030572,10]
[344022154,1733209857155,-10174.33433948,0.00030572,10]
[344022155,1733209857167,-435.68848965,0.00030572,10]
[344022156,1733209857309,-151.0,0.00020181,2]
[344022157,1733209857326,-151.0,0.00020358,2]
[344022158,1733209857336,-151.0,0.00020588,2]
[344022159,1733209857345,-500.0,0.00027397,7]
[344022160,1733209857355,-19068.78319395,0.00030572,10]
[344022161,1733209857366,-12801.09442,0.00030572,10]
[344022162,1733209857378,-1279.20002,0.00030572,10]
[344022163,1733209857389,-3636.09917491,0.00030572,10]
[344022165,1733210029153,175.581374,0.00013973,2]
[344022168,1733210243029,2957.40008533,0.00016001,2]
[344022177,1733210843813,166.802305,0.00013973,2]
[344022179,1733210957150,-588.0,0.00016273,2]
[344022227,1733211033380,-51.89123147,0.00016273,2]
[344022228,1733211033390,-500.0,0.0001713,2]
[344022229,1733211033400,-233.0,0.00017386,2]
[344022231,1733211033410,-7574.74054481,0.00017387,2]
[344022286,1733211038696,-17325.25945519,0.00017387,2]
[344022288,1733211038706,-2709.3878094,0.00017692,2]
[344022290,1733211038715,-163.7636479,0.00017792,2]
[344022292,1733211038726,-500.0,0.00018031,2]
[344022294,1733211038736,-2476.99385263,0.0001846,2]
[344022297,1733211038745,-500.0,0.0001898,2]
[344022299,1733211038755,-264.705007,0.00019078,2]
[344022301,1733211038765,-5000.0,0.00019178,2]
[344022303,1733211038774,-500.0,0.00019979,2]
[344022305,1733211038784,-1572.51395945,0.00019999,2]
[344022307,1733211038794,-5000.0,0.00019999,2]
[344022309,1733211038804,-1169.27083333,0.0002,2]
[344022311,1733211038813,-163.87832118,0.0002017,2]
[344022313,1733211038823,-500.0,0.0002017,2]
[344022314,1733211038835,-500.0,0.0002017,2]
[344022315,1733211038845,-500.0,0.0002017,2]
[344022317,1733211038856,-500.0,0.0002017,2]
[344022319,1733211038867,-500.0,0.0002017,2]
[344022320,1733211038883,-500.0,0.0002017,2]
[344022322,1733211038893,-500.0,0.0002017,2]
[344022324,1733211038903,-500.0,0.0002017,2]
[344022325,1733211038913,-500.0,0.0002017,2]
[344022326,1733211038922,-500.0,0.0002017,2]
[344022327,1733211038932,-222.39573986,0.0002017,2]
[344022328,1733211039036,-500.0,0.0002017,2]
[344022329,1733211039047,-500.0,0.0002017,2]
[344022330,1733211039057,-500.0,0.0002017,2]
[344022331,1733211039067,-500.0,0.0002017,2]
[344022332,1733211039077,-500.0,0.0002017,2]
[344022333,1733211039091,-500.0,0.0002017,2]
[344022334,1733211039106,-500.0,0.0002017,2]
[344022335,1733211039116,-500.0,0.0002017,2]
[344022336,1733211039125,-500.0,0.0002017,2]
[344022337,1733211039135,-500.0,0.0002017,2]
[344022338,1733211039144,-352.17891141,0.0002017,2]
[344022339,1733211039153,-395.56776032,0.0002017,2]
[344022345,1733211040507,-104.43223968,0.0002017,2]
[344022346,1733211040516,-500.0,0.0002017,2]
[344022347,1733211040526,-500.0,0.0002017,2]
[344022348,1733211040536,-500.0,0.0002017,2]
[344022349,1733211040545,-500.0,0.0002017,2]
[344022350,1733211040555,-500.0,0.0002017,2]
[344022351,1733211040564,-500.0,0.0002017,2]
[344022352,1733211040574,-500.0,0.0002017,2]
[344022353,1733211040586,-500.0,0.0002017,2]
[344022354,1733211040599,-500.0,0.0002017,2]
[344022355,1733211040609,-500.0,0.0002017,2]
[344022356,1733211040619,-500.0,0.0002017,2]
[344022357,1733211040629,-500.0,0.0002017,2]
[344022358,1733211040640,-586.16089911,0.0002017,2]
[344022359,1733211040650,-500.0,0.0002017,2]
[344022360,1733211040660,-500.0,0.0002017,2]
[344022361,1733211040670,-500.0,0.0002017,2]
[344022362,1733211040680,-500.0,0.0002017,2]
[344022363,1733211040690,-500.0,0.0002017,2]
[344022364,1733211040700,-500.0,0.0002017,2]
[344022365,1733211040710,-500.0,0.0002017,2]
[344022366,1733211040720,-500.0,0.0002017,2]
[344022367,1733211040730,-500.0,0.0002017,2]
[344022368,1733211040740,-500.0,0.0002017,2]
[344022369,1733211040750,-500.0,0.0002017,2]
[344022370,1733211040760,-500.0,0.0002017,2]
[344022371,1733211040770,-500.0,0.0002017,2]
[344022372,1733211040780,-500.0,0.0002017,2]
[344022373,1733211040790,-500.0,0.0002017,2]
[344022374,1733211040799,-500.0,0.0002017,2]
[344022375,1733211040809,-500.0,0.0002017,2]
[344022376,1733211040818,-500.0,0.0002017,2]
[344022377,1733211040828,-500.0,0.0002017,2]
[344022378,1733211040843,-500.0,0.0002017,2]
[344022379,1733211040853,-500.0,0.0002017,2]
[344022380,1733211040863,-500.0,0.0002017,2]
[344022381,1733211040872,-639.87930844,0.0002017,2]
[344022382,1733211040882,-500.0,0.0002017,2]
[344022383,1733211040891,-500.0,0.0002017,2]
[344022384,1733211040900,-500.0,0.0002017,2]
[344022385,1733211040910,-500.0,0.0002017,2]
[344022386,1733211040920,-5000.0,0.00020173,2]
[344022387,1733211040931,-5000.0,0.00020177,2]
[344022388,1733211040941,-5000.0,0.00020177,2]
[344022389,1733211040951,-500.0,0.00020179,2]
[344022390,1733211040961,-151.0,0.00020181,2]
[344022391,1733211040971,-151.0,0.00020358,2]
[344022392,1733211040981,-193.17499,0.00020377,2]
[344022393,1733211040992,-166.802305,0.00020447,2]
[344022394,1733211041002,-1407.40468882,0.00020551,15]
[344022395,1733211041012,-151.0,0.00020588,2]
[344022396,1733211041022,-264.70500693,0.00020699,2]
[344022397,1733211041032,-5000.0,0.00020808,2]
[344022398,1733211041042,-500.0,0.00021031,2]
[344022399,1733211041051,-151.0,0.00021835,2]
[344022400,1733211041061,-1169.27083333,0.00022,3]
[344022401,1733211041071,-1169.27083333,0.00022,3]
[344022402,1733211041080,-151.0,0.00022,7]
[344022403,1733211041094,-500.0,0.00022138,2]
[344022404,1733211041102,-264.70500693,0.0002232,2]
[344022405,1733211041112,-1169.27083333,0.0002261,7]
[344022406,1733211041121,-151.0,0.0002315,7]
[344022407,1733211041131,-500.0,0.00023303,2]
[344022408,1733211041140,-264.70500693,0.00023941,2]
[344022409,1733211041151,-500.0,0.00024468,2]
[344022410,1733211041161,-5000.0,0.00024899,2]
[344022411,1733211041171,-193.678,0.00024998,8]
[344022412,1733211041181,-461.1708598,0.00024999,2]
[344022414,1733211041190,-437.90689055,0.00024999,2]
[344022415,1733211041200,-428.18119989,0.00024999,2]
[344022417,1733211041209,-500.0,0.00024999,2]
[344022419,1733211041218,-500.0,0.00024999,2]
[344022420,1733211041229,-183.25802195,0.00024999,2]
[344022421,1733211041240,-500.0,0.00024999,2]
[344022422,1733211041249,-1169.27083333,0.00025,7]
[344022423,1733211041259,-1169.27083333,0.00025,7]
[344022424,1733211041268,-151.0,0.00025,7]
[344022425,1733211041278,-151.0,0.00025,7]
[344022426,1733211041288,-252.7119352,0.00025,2]
[344022427,1733211041297,-28039.16331664,0.00025,2]
[344022428,1733211041307,-10359.0,0.00025,2]
[344022429,1733211041317,-5000.0,0.00025206,2]
[344022430,1733211041327,-150.0,0.00025207,2]
[344022431,1733211041340,-532.0,0.00025207,2]
[344022432,1733211041349,-2377.0,0.00025207,2]
[344022433,1733211041359,-2173.0,0.00025207,2]
[344022435,1733211041368,-151.0,0.00025521,7]
[344022437,1733211041379,-264.70500693,0.00025563,2]
[344022438,1733211041388,-500.0,0.00025692,2]
[344022439,1733211041399,-166.802305,0.00026921,2]
[344022440,1733211041409,-500.0,0.00026976,2]
[344022441,1733211041419,-264.70500693,0.00027184,2]
[344022442,1733211041428,-433.57128848,0.00027296,2]
[344022443,1733211041438,-5000.0,0.00027396,2]
[344022444,1733211041448,-5000.0,0.00027396,2]
[344022445,1733211041458,-501.24021204,0.00027397,7]
[344022446,1733211041468,-501.29399135,0.00027397,7]
[344022447,1733211041478,-500.0,0.00027397,7]
[344022448,1733211041488,-500.0,0.00027397,7]
[344022449,1733211041498,-500.0,0.00027397,7]
[344022450,1733211041508,-500.0,0.00027397,7]
[344022451,1733211041517,-501.3427183,0.00027397,7]
[344022452,1733211041528,-500.0,0.00027397,7]
[344022453,1733211041538,-500.0,0.00027397,7]
[344022454,1733211041549,-500.0,0.00027397,7]
[344022455,1733211041558,-200.28905997,0.00027397,7]
[344022456,1733211041567,-500.0,0.00027397,7]
[344022457,1733211041577,-500.0,0.00027397,7]
[344022458,1733211041589,-500.0,0.00027397,7]
[344022459,1733211041601,-500.0,0.00027397,2]
[344022460,1733211041611,-470.1632074,0.00027397,7]
[344022461,1733211041622,-500.0,0.00027397,7]
[344022462,1733211041631,-500.0,0.00027397,7]
[344022463,1733211041643,-562.91936094,0.00027397,7]
[344022464,1733211041653,-409.74230422,0.00027397,7]
[344022465,1733211041663,-500.0,0.00027397,7]
[344022466,1733211041674,-500.0,0.00027397,7]
[344022467,1733211041684,-500.0,0.00027397,7]
[344022468,1733211041695,-505.59877947,0.00027397,7]
[344022469,1733211041704,-372.78,0.00027397,7]
[344022470,1733211041714,-500.0,0.00027397,7]
[344022471,1733211041723,-500.0,0.00027397,7]
[344022472,1733211041734,-500.0,0.00027397,7]
[344022473,1733211041743,-500.0,0.00027397,7]
[344022474,1733211041753,-500.0,0.00027397,7]
[344022475,1733211041762,-500.0,0.00027397,7]
[344022476,1733211041772,-500.0,0.00027397,7]
[344022477,1733211041781,-500.0,0.00027397,7]
[344022478,1733211041791,-500.0,0.00027397,7]
[344022479,1733211041800,-500.0,0.00027397,7]
[344022480,1733211041810,-500.0,0.00027397,7]
[344022481,1733211041819,-500.0,0.00027397,7]
[344022482,1733211041828,-465.06,0.00027397,7]
[344022483,1733211041839,-500.0,0.00027397,7]
[344022484,1733211041849,-500.0,0.00027397,7]
[344022485,1733211041860,-500.0,0.00027397,7]
[344022486,1733211041870,-168.0,0.00027397,7]
[344022487,1733211041880,-500.0,0.00027397,7]
[344022488,1733211041890,-500.0,0.00027397,7]
[344022489,1733211041900,-471.36,0.00027397,7]
[344022490,1733211041909,-500.0,0.00027397,7]
[344022491,1733211041917,-500.0,0.00027397,7]
[344022492,1733211041925,-500.0,0.00027397,7]
[344022493,1733211041935,-500.0,0.00027397,7]
[344022494,1733211041945,-507.82036139,0.00027397,7]
[344022495,1733211041954,-500.0,0.00027397,7]
[344022496,1733211041964,-561.80493642,0.00027397,7]
[344022497,1733211041973,-500.0,0.00027397,7]
[344022498,1733211041983,-500.0,0.00027397,7]
[344022499,1733211041993,-511.31472221,0.00027397,7]
[344022500,1733211042003,-512.02430481,0.00027397,7]
[344022501,1733211042012,-500.0,0.00027397,7]
[344022502,1733211042023,-500.0,0.00027397,7]
[344022503,1733211042033,-500.0,0.00027397,7]
[344022504,1733211042042,-500.0,0.00027397,7]
[344022505,1733211042052,-504.19572524,0.00027397,7]
[344022506,1733211042061,-500.0,0.00027397,7]
[344022507,1733211042071,-500.71498164,0.00027397,7]
[344022508,1733211042081,-500.0,0.00027397,7]
[344022509,1733211042093,-500.0,0.00027397,7]
[344022510,1733211042102,-473.99927237,0.00027397,7]
[344022511,1733211042112,-502.43380188,0.00027397,7]
[344022512,1733211042122,-500.0,0.00027397,7]
[344022513,1733211042131,-523.70843358,0.00027397,7]
[344022514,1733211042140,-4125.73,0.00027397,7]
[344022515,1733211042150,-500.0,0.00027397,7]
[344022516,1733211042160,-500.0,0.00027397,7]
[344022517,1733211042170,-500.0,0.00027397,7]
[344022518,1733211042180,-1747.22,0.00027397,7]
[344022519,1733211042190,-405.48166702,0.00027397,7]
[344022520,1733211042199,-500.0,0.00027397,7]
[344022521,1733211042209,-500.0,0.00027397,7]
[344022522,1733211042219,-500.0,0.00027397,7]
[344022523,1733211042228,-502.10581356,0.00027397,7]
[344022524,1733211042238,-527.07742387,0.00027397,7]
[344022525,1733211042247,-500.0,0.00027397,7]
[344022526,1733211042257,-500.0,0.00027397,7]
[344022527,1733211042266,-500.0,0.00027397,7]
[344022528,1733211042275,-500.0,0.00027397,7]
[344022529,1733211042285,-500.0,0.00027397,7]
[344022530,1733211042295,-453.73259246,0.00027397,7]
[344022531,1733211042305,-500.0,0.00027397,7]
[344022532,1733211042315,-500.0,0.00027397,7]
[344022533,1733211042324,-509.14618513,0.00027397,7]
[344022534,1733211042336,-500.0,0.00027397,7]
[344022535,1733211042346,-500.0,0.00027397,7]
[344022536,1733211042355,-506.88909081,0.00027397,7]
[344022537,1733211042365,-500.0,0.00027397,7]
[344022538,1733211042374,-510.19420966,0.00027397,7]
[344022539,1733211042383,-5000.0,0.0002757,2]
[344022540,1733211042393,-11588.85911146,0.00027571,3]
[344022541,1733211042408,-7160.08572774,0.00027571,3]
[344022542,1733211042418,-5000.0,0.00027669,2]
[344022543,1733211042428,-80.23326125,0.0002767,2]
[344022544,1733211042439,-2457.61965884,0.0002767,2]
[344022548,1733211043546,-500.0,0.00027397,7]
[344022549,1733211043557,-2462.14707991,0.0002767,2]
[344022550,1733211043567,-500.0,0.00027671,7]
[344022551,1733211043576,-500.0,0.00027671,7]
[344022552,1733211043588,-203.00092653,0.00027671,7]
[344022553,1733211043599,-500.0,0.00027671,7]
[344022554,1733211043609,-528.8,0.00027671,7]
[344022555,1733211043618,-500.0,0.00027671,7]
[344022556,1733211043628,-260.3157599,0.00027671,7]
[344022557,1733211043638,-500.0,0.00027671,7]
[344022558,1733211043647,-500.0,0.00027671,7]
[344022559,1733211043657,-500.0,0.00027671,7]
[344022560,1733211043667,-500.0,0.00027671,7]
[344022561,1733211043678,-500.0,0.00027671,7]
[344022562,1733211043688,-500.0,0.00027671,7]
[344022563,1733211043697,-500.0,0.00027671,7]
[344022565,1733211043706,-168.0,0.00027671,7]
[344022566,1733211043716,-500.0,0.00027671,7]
[344022567,1733211043725,-500.0,0.00027671,7]
[344022568,1733211043735,-290.9960007,0.00027671,7]
[344022569,1733211043744,-500.0,0.00027671,7]
[344022570,1733211043754,-500.0,0.00027671,7]
[344022571,1733211043764,-500.0,0.00027671,7]
[344022572,1733211043773,-344.48246445,0.00027671,7]
[344022573,1733211043783,-500.0,0.00027671,7]
[344022574,1733211043793,-4125.73,0.00027671,7]
[344022575,1733211043802,-500.0,0.00027671,7]
[344022576,1733211043812,-500.0,0.00027671,7]
[344022577,1733211043822,-1747.22,0.00027671,7]
[344022578,1733211043834,-500.0,0.00027671,7]
[344022579,1733211043844,-500.0,0.00027671,7]
[344022580,1733211043854,-500.0,0.00027671,7]
[344022581,1733211043863,-500.0,0.00027671,7]
[344022582,1733211043874,-500.0,0.00027671,7]
[344022583,1733211043884,-500.0,0.00027671,7]
[344022584,1733211043893,-500.0,0.00027671,7]
[344022585,1733211043903,-500.0,0.00027671,7]
[344022586,1733211043913,-500.0,0.00027671,7]
[344022587,1733211043923,-500.0,0.00027671,7]
[344022588,1733211043933,-5000.0,0.00027944,2]
[344022589,1733211043942,-500.0,0.00027945,7]
[344022590,1733211043952,-500.0,0.00027945,7]